{"text_format":"3","workbook":"xlsx","n_sheets":1,"sheets":["REMONTTIKUSTANNUKSET"],"not_rendered":{"images":2,"defined_names":4},"read":"whole","date_system":"1900"}

{"sheet":"REMONTTIKUSTANNUKSET","index":0,"n_rows":28,"n_cols":8,"rows_kept":28,"merged":[[25,1,25,5],[26,1,26,5],[27,1,27,5]]}
[null,"KEITTIÖREMONTIN KUSTANNUSTEN LASKENTATAULUKKO"]
[]
[null,"Luokka","Tuotteet","Määrä","Arvioidut kustannukset","Todelliset kustannukset","Arvioidut kustannukset yhteensä","Todelliset kulut yhteensä"]
[null,"Kaapit","Alakaapit: Moduulistandardi (määrä lineaarisesti jalkoina)",25,{"v":5,"d":"5.00 €"},null,{"$f":"Tiedot[[#This Row],[Määrä]]*Tiedot[[#This Row],[Arvioidut kustannukset]]","v":{"v":125,"d":"125 €"}},{"$f":"Tiedot[[#This Row],[Määrä]]*Tiedot[[#This Row],[Todelliset kustannukset]]","v":{"v":0,"d":"0 €"}}]
[null,"Kaapit","Yläkaapit: Moduulistandardi (määrä lineaarisesti jalkoina)",25,{"v":3.5,"d":"3.50 €"},null,{"$f":"Tiedot[[#This Row],[Määrä]]*Tiedot[[#This Row],[Arvioidut kustannukset]]","v":{"v":87.5,"d":"88 €"}},{"$f":"Tiedot[[#This Row],[Määrä]]*Tiedot[[#This Row],[Todelliset kustannukset]]","v":{"v":0,"d":"0 €"}}]
[null,"Puhdistusvälineet","Astianpesukone: Vakio",1,{"v":250,"d":"250.00 €"},null,{"$f":"Tiedot[[#This Row],[Määrä]]*Tiedot[[#This Row],[Arvioidut kustannukset]]","v":{"v":250,"d":"250 €"}},{"$f":"Tiedot[[#This Row],[Määrä]]*Tiedot[[#This Row],[Todelliset kustannukset]]","v":{"v":0,"d":"0 €"}}]
[null,"Puhdistusvälineet","Jätteet: Vakio",1,{"v":175,"d":"175.00 €"},null,{"$f":"Tiedot[[#This Row],[Määrä]]*Tiedot[[#This Row],[Arvioidut kustannukset]]","v":{"v":175,"d":"175 €"}},{"$f":"Tiedot[[#This Row],[Määrä]]*Tiedot[[#This Row],[Todelliset kustannukset]]","v":{"v":0,"d":"0 €"}}]
[null,"Keittovälineet","Alue: Liukustandardi",1,{"v":375,"d":"375.00 €"},null,{"$f":"Tiedot[[#This Row],[Määrä]]*Tiedot[[#This Row],[Arvioidut kustannukset]]","v":{"v":375,"d":"375 €"}},{"$f":"Tiedot[[#This Row],[Määrä]]*Tiedot[[#This Row],[Todelliset kustannukset]]","v":{"v":0,"d":"0 €"}}]
[null,"Keittovälineet","Mikroaaltouuni: Vakio",1,{"v":300,"d":"300.00 €"},null,{"$f":"Tiedot[[#This Row],[Määrä]]*Tiedot[[#This Row],[Arvioidut kustannukset]]","v":{"v":300,"d":"300 €"}},{"$f":"Tiedot[[#This Row],[Määrä]]*Tiedot[[#This Row],[Todelliset kustannukset]]","v":{"v":0,"d":"0 €"}}]
[null,"Tiskit","Kiinteä pinta (määrä lineaarijalkoina)",23,{"v":10,"d":"10.00 €"},null,{"$f":"Tiedot[[#This Row],[Määrä]]*Tiedot[[#This Row],[Arvioidut kustannukset]]","v":{"v":230,"d":"230 €"}},{"$f":"Tiedot[[#This Row],[Määrä]]*Tiedot[[#This Row],[Todelliset kustannukset]]","v":{"v":0,"d":"0 €"}}]
[null,"Ovet","Sisäpuoli: Solidcore-paneeli",1,{"v":65,"d":"65.00 €"},null,{"$f":"Tiedot[[#This Row],[Määrä]]*Tiedot[[#This Row],[Arvioidut kustannukset]]","v":{"v":65,"d":"65 €"}},{"$f":"Tiedot[[#This Row],[Määrä]]*Tiedot[[#This Row],[Todelliset kustannukset]]","v":{"v":0,"d":"0 €"}}]
[null,"Lisäominaisuudet","Lisäominaisuudet: Vakiomallinen heti lämmin vesi",1,{"v":120,"d":"120.00 €"},null,{"$f":"Tiedot[[#This Row],[Määrä]]*Tiedot[[#This Row],[Arvioidut kustannukset]]","v":{"v":120,"d":"120 €"}},{"$f":"Tiedot[[#This Row],[Määrä]]*Tiedot[[#This Row],[Todelliset kustannukset]]","v":{"v":0,"d":"0 €"}}]
[null,"Lisäominaisuudet","Lisäominaisuudet: Saippua-annostelija",1,{"v":40,"d":"40.00 €"},null,{"$f":"Tiedot[[#This Row],[Määrä]]*Tiedot[[#This Row],[Arvioidut kustannukset]]","v":{"v":40,"d":"40 €"}},{"$f":"Tiedot[[#This Row],[Määrä]]*Tiedot[[#This Row],[Todelliset kustannukset]]","v":{"v":0,"d":"0 €"}}]
[null,"Hanat","Hana: Vakiovipuhana",1,{"v":130,"d":"130.00 €"},null,{"$f":"Tiedot[[#This Row],[Määrä]]*Tiedot[[#This Row],[Arvioidut kustannukset]]","v":{"v":130,"d":"130 €"}},{"$f":"Tiedot[[#This Row],[Määrä]]*Tiedot[[#This Row],[Todelliset kustannukset]]","v":{"v":0,"d":"0 €"}}]
[null,"Lattiapäällysteet","Laminaatti (neliöjalkoina)",165,{"v":3.5,"d":"3.50 €"},null,{"$f":"Tiedot[[#This Row],[Määrä]]*Tiedot[[#This Row],[Arvioidut kustannukset]]","v":{"v":577.5,"d":"578 €"}},{"$f":"Tiedot[[#This Row],[Määrä]]*Tiedot[[#This Row],[Todelliset kustannukset]]","v":{"v":0,"d":"0 €"}}]
[null,"Pyykinpesuvarusteet","Pesukone: Vakio",1,{"v":500,"d":"500.00 €"},null,{"$f":"Tiedot[[#This Row],[Määrä]]*Tiedot[[#This Row],[Arvioidut kustannukset]]","v":{"v":500,"d":"500 €"}},{"$f":"Tiedot[[#This Row],[Määrä]]*Tiedot[[#This Row],[Todelliset kustannukset]]","v":{"v":0,"d":"0 €"}}]
[null,"Pyykinpesuvarusteet","Kuivain: Vakio",1,{"v":375,"d":"375.00 €"},null,{"$f":"Tiedot[[#This Row],[Määrä]]*Tiedot[[#This Row],[Arvioidut kustannukset]]","v":{"v":375,"d":"375 €"}},{"$f":"Tiedot[[#This Row],[Määrä]]*Tiedot[[#This Row],[Todelliset kustannukset]]","v":{"v":0,"d":"0 €"}}]
[null,"Valaistus","Valaistus: Syvennetty lieriö",4,{"v":35,"d":"35.00 €"},null,{"$f":"Tiedot[[#This Row],[Määrä]]*Tiedot[[#This Row],[Arvioidut kustannukset]]","v":{"v":140,"d":"140 €"}},{"$f":"Tiedot[[#This Row],[Määrä]]*Tiedot[[#This Row],[Todelliset kustannukset]]","v":{"v":0,"d":"0 €"}}]
[null,"Jääkaapit","Jääkaappi: Vapaasti seisova luksusmalli",1,{"v":1200,"d":"1,200.00 €"},null,{"$f":"Tiedot[[#This Row],[Määrä]]*Tiedot[[#This Row],[Arvioidut kustannukset]]","v":{"v":1200,"d":"1,200 €"}},{"$f":"Tiedot[[#This Row],[Määrä]]*Tiedot[[#This Row],[Todelliset kustannukset]]","v":{"v":0,"d":"0 €"}}]
[null,"Altaat","Kaksoiskulho ruostumatonta terästä, luksusmalli",1,{"v":125,"d":"125.00 €"},null,{"$f":"Tiedot[[#This Row],[Määrä]]*Tiedot[[#This Row],[Arvioidut kustannukset]]","v":{"v":125,"d":"125 €"}},{"$f":"Tiedot[[#This Row],[Määrä]]*Tiedot[[#This Row],[Todelliset kustannukset]]","v":{"v":0,"d":"0 €"}}]
[null,"Tuuletus","Huppuyksikkö: Vakioputket",1,{"v":180,"d":"180.00 €"},null,{"$f":"Tiedot[[#This Row],[Määrä]]*Tiedot[[#This Row],[Arvioidut kustannukset]]","v":{"v":180,"d":"180 €"}},{"$f":"Tiedot[[#This Row],[Määrä]]*Tiedot[[#This Row],[Todelliset kustannukset]]","v":{"v":0,"d":"0 €"}}]
[null,"Seinät","Seinäverhoilu (neliöjalkoina)",70,{"v":2,"d":"2.00 €"},null,{"$f":"Tiedot[[#This Row],[Määrä]]*Tiedot[[#This Row],[Arvioidut kustannukset]]","v":{"v":140,"d":"140 €"}},{"$f":"Tiedot[[#This Row],[Määrä]]*Tiedot[[#This Row],[Todelliset kustannukset]]","v":{"v":0,"d":"0 €"}}]
[null,"Ikkunat","Liu'utus",2,{"v":120,"d":"120.00 €"},null,{"$f":"Tiedot[[#This Row],[Määrä]]*Tiedot[[#This Row],[Arvioidut kustannukset]]","v":{"v":240,"d":"240 €"}},{"$f":"Tiedot[[#This Row],[Määrä]]*Tiedot[[#This Row],[Todelliset kustannukset]]","v":{"v":0,"d":"0 €"}}]
[null,"Muut",{"$nulls":4},{"$f":"Tiedot[[#This Row],[Määrä]]*Tiedot[[#This Row],[Arvioidut kustannukset]]","v":{"v":0,"d":"0 €"}},{"$f":"Tiedot[[#This Row],[Määrä]]*Tiedot[[#This Row],[Todelliset kustannukset]]","v":{"v":0,"d":"0 €"}}]
[null,"Yhteensä",null,null,{"$f":"SUBTOTAL(109,Tiedot[Arvioidut kustannukset])","v":{"v":4014,"d":"4,014.00 €"}},{"$f":"SUBTOTAL(109,Tiedot[Todelliset kustannukset])","v":{"v":0,"d":"0.00 €"}},{"$f":"SUBTOTAL(109,Tiedot[Arvioidut kustannukset yhteensä])","v":{"v":5375,"d":"5,375.00 €"}},{"$f":"SUBTOTAL(109,Tiedot[Todelliset kulut yhteensä])","v":{"v":0,"d":"0.00 €"}}]
[null,"Välisumma",{"$nulls":4},{"$f":"SUBTOTAL(109,Tiedot[Arvioidut kustannukset yhteensä])","v":{"v":5375,"d":"5,375.00 €"}},{"$f":"SUBTOTAL(109,Tiedot[Todelliset kulut yhteensä])","v":{"v":0,"d":"0.00 €"}}]
[null,"Odottamattomat kustannukset - lisää 30 %",{"$nulls":4},{"$f":"G26*0.3","v":{"v":1612.5,"d":"1,612.50 €"}},{"$f":"H26*0.3","v":{"v":0,"d":"0.00 €"}}]
[null,"Yhteensä",{"$nulls":4},{"$f":"SUM(G26:G27)","v":{"v":6987.5,"d":"6,987.50 €"}},{"$f":"SUM(H26:H27)","v":{"v":0,"d":"0.00 €"}}]